bitfinex/quotes_ETHUSD_20251012
["timestamp","ask_amount","ask_price","bid_price","bid_amount"]
[1760247894989,0.001,3822.1,3822.0,3.08923118]
[1760247900893,0.001,3822.1,3822.0,3.72283118]
[1760247901099,0.001,3822.1,3822.0,3.85323118]
[1760247906682,0.001,3822.1,3822.0,3.38043118]
[1760247907272,0.001,3822.1,3822.0,3.85323118]
[1760247907709,0.001,3822.1,3822.0,4.64042097]
[1760247908423,0.001,3822.1,3822.0,4.64242097]
[1760247909005,0.001,3822.1,3822.0,4.16962097]
[1760247909724,0.001,3822.1,3822.0,4.64242097]
[1760247910226,0.001,3822.1,3822.0,2.61843118]
[1760247910825,0.001,3822.1,3822.0,3.09123118]
[1760247911221,0.001,3822.1,3822.0,3.72483118]
[1760247911421,0.001,3822.1,3822.0,3.85523118]
[1760247911625,0.001,3822.1,3822.0,3.98663118]
[1760247915234,0.001,3822.1,3822.0,3.51383118]
[1760247915411,4.20777933,3822.1,3822.0,2.61843118]
[1760247915927,0.001,3822.1,3822.0,2.61843118]
[1760247916129,0.001,3822.1,3822.0,3.09123118]
[1760247916331,0.001,3822.1,3822.0,2.61843118]
[1760247918318,0.001,3822.1,3822.0,3.72483118]
[1760247918519,0.001,3822.1,3822.0,3.85523118]
[1760247918940,0.001,3822.1,3822.0,4.64242304]
[1760247919344,0.001,3822.1,3822.0,9.56499538]
[1760247919503,0.001,3822.1,3822.0,4.03922304]
[1760247919708,0.001,3822.1,3822.0,4.51202304]
[1760247922405,0.001,3822.1,3822.0,3.40562304]
[1760247922612,0.001,3822.1,3822.0,2.61843118]
[1760247925440,0.463,3822.1,3822.0,2.61843118]
[1760247925851,0.001,3822.1,3822.0,2.61843118]
[1760247926251,0.001,3822.1,3822.0,3.08133118]
[1760247926569,0.001,3822.1,3822.0,3.71493118]
[1760247926754,0.001,3822.1,3822.0,4.17693118]
[1760247929665,0.001,3822.1,3822.0,4.30733118]
[1760247932586,0.001,3822.1,3822.0,3.08043118]
[1760247932747,0.001,3822.1,3822.0,2.61843118]
[1760247933787,0.463,3822.1,3822.0,2.61843118]
[1760247933973,0.463,3822.1,3822.0,0.002]
[1760247934489,0.463,3822.1,3822.0,2.61843118]
[1760247935785,0.001,3822.1,3822.0,2.61843118]
[1760247936866,0.463,3822.1,3822.0,2.61843118]
[1760247937051,0.463,3822.1,3822.0,0.002]
[1760247937686,0.001,3822.1,3822.0,2.61843118]
[1760247939270,0.463,3822.1,3822.0,2.61843118]
[1760247939515,0.463,3822.1,3822.0,0.002]
[1760247940318,15.07785706,3822.1,3822.0,0.002]
[1760247940889,17.69421979,3822.1,3822.0,0.002]
[1760247941289,2.383,3822.1,3822.0,0.002]
[1760247941687,1.921,3822.1,3822.0,2.61843118]
[1760247941874,2.383,3822.1,3822.0,0.002]
[1760247943106,0.463,3822.1,3822.0,0.002]
[1760247943289,15.07785706,3822.1,3822.0,0.002]
[1760247944779,2.383,3822.1,3822.0,0.002]
[1760247946515,2.383,3822.1,3822.0,2.61843118]
[1760247946912,2.383,3822.1,3822.0,0.002]
[1760247950312,5.17748027,3822.1,3822.0,0.002]
[1760247952241,4.71548027,3822.1,3822.0,2.61843118]
[1760247952444,0.001,3822.1,3822.0,2.61843118]
[1760247954462,0.001,3822.1,3822.0,3.09203118]
[1760247954665,0.001,3822.1,3822.0,3.85603118]
[1760247957631,0.001,3822.1,3822.0,3.38243118]
[1760247957837,0.001,3822.1,3822.0,2.61843118]
[1760247960668,0.001,3822.1,3822.0,3.72563118]
[1760247960836,0.001,3822.1,3822.0,3.85603118]
[1760247964061,0.001,3822.1,3822.0,3.72563118]
[1760247964985,0.001,3822.1,3822.0,3.83057082]
[1760247969699,0.001,3822.1,3822.0,3.72563118]
[1760247973809,1e-08,3822.9,3822.8,2.61588364]
[1760247973986,1e-08,3822.9,3822.8,3.37988364]
[1760247974181,1e-08,3822.9,3822.8,3.85348364]
[1760247974668,0.001,3824.1,3824.0,3.24866276]
[1760247974872,0.001,3824.1,3824.0,3.72226276]
[1760247975801,15.30858721,3826.0,3824.8,2.61451579]
[1760247975802,0.4679,3825.8,3824.8,2.61451579]
[1760247976979,0.4679,3825.6,3824.8,2.61451579]
[1760247977690,0.4679,3825.4,3824.8,2.61451579]
[1760247978499,0.2173,3825.9,3824.8,2.61451579]
[1760247978701,0.4679,3826.2,3824.8,3.72171579]
[1760247978912,2.3879,3826.2,3824.8,3.72171579]
[1760247979122,0.7047,3825.9,3824.8,3.72171579]
[1760247981419,0.2368,3825.9,3824.8,2.61451579]
[1760247981598,0.4679,3825.7,3824.8,3.08811579]
[1760247982826,0.4689,3826.2,3824.8,3.72171579]
[1760247984523,1.92,3826.5,3824.8,3.72171579]
[1760247984524,0.4689,3826.0,3824.8,3.72171579]
[1760247984689,0.1304,3825.8,3824.8,3.85211579]
[1760247987222,0.5993,3825.8,3824.8,3.85211579]
[1760247988738,0.2362,3825.9,3824.8,3.85211579]
[1760247988739,0.4689,3825.4,3824.8,2.74491579]
[1760247988889,0.1314,3825.3,3824.8,2.74491579]
[1760247990023,0.4699,3824.9,3824.8,2.61451579]
[1760247990389,0.001,3824.9,3824.8,3.06741579]
[1760247990597,0.001,3824.9,3824.8,3.70101579]
[1760247995510,0.001,3824.9,3824.8,3.24811579]
[1760247995701,0.001,3824.9,3824.8,3.70101579]
[1760247996799,0.001,3824.9,3824.8,2.61451579]
[1760247999819,0.001,3824.9,3824.8,3.06741579]
[1760248000008,0.001,3824.9,3824.8,3.70101579]
[1760248001302,0.001,3824.9,3824.8,3.83141579]
[1760248004336,0.001,3824.9,3824.8,5.75141579]
[1760248008028,0.001,3824.9,3824.8,5.29851579]
[1760248008228,0.001,3824.9,3824.8,5.72771579]
[1760248009511,0.001,3824.9,3824.8,3.37851579]
[1760248011246,0.001,3824.9,3824.8,3.80771579]
[1760248012762,0.001,3824.9,3824.8,3.37851579]
[1760248013447,0.001,3824.9,3824.8,3.85231579]
[1760248020547,0.3419,3825.9,3825.8,2.6138324]
[1760248020861,1.92,3826.0,3825.9,2.61376408]
[1760248021423,1.92,3826.0,3825.1,0.1304]
[1760248021630,4.2003072,3825.4,3824.5,2.61472087]
[1760248021840,4.3307072,3825.1,3825.0,2.61437908]
[1760248022755,4.7223072,3825.1,3825.0,2.61437908]
[1760248023762,0.522,3825.1,3825.0,2.61437908]
[1760248025575,0.522,3825.1,3824.3,2.61684473]
[1760248025775,0.3916,3825.1,3824.9,2.61442092]
[1760248026080,0.3916,3825.0,3824.9,2.61444743]
[1760248026975,1.92,3825.5,3824.3,0.002]
[1760248027135,0.1304,3824.5,3824.4,2.61478924]
[1760248027535,0.522,3824.5,3824.4,2.61478924]
[1760248028867,0.3916,3825.3,3824.8,2.61446394]
[1760248029066,0.3916,3825.2,3825.0,2.61434073]
[1760248029272,0.3916,3825.1,3825.0,2.61434073]
[1760248029772,0.1304,3825.0,3824.9,2.61444488]
[1760248030078,0.522,3825.0,3824.9,2.61444488]
[1760248030376,0.1304,3825.0,3824.9,2.61444488]
[1760248032092,2.79448027,3825.8,3824.9,2.61444488]
[1760248032093,0.3916,3825.8,3825.5,2.61400404]
[1760248032246,0.1304,3825.4,3825.0,2.61437908]
[1760248032587,0.1304,3825.4,3825.3,2.61417405]
[1760248033250,0.522,3825.4,3825.3,2.61417405]
[1760248033644,0.1304,3825.4,3825.3,2.61417405]
[1760248033851,0.522,3825.4,3825.3,2.61417405]
[1760248034483,0.522,3825.4,3825.1,2.61428095]
[1760248034684,0.3916,3825.3,3825.1,2.61428095]
[1760248034975,0.3916,3825.2,3825.1,2.61428095]
[1760248038084,0.1304,3825.1,3824.4,0.1304]
[1760248038583,0.3916,3825.0,3824.9,2.61443218]
[1760248038784,0.1304,3825.1,3824.9,2.61443218]
[1760248038785,0.1304,3825.1,3825.0,2.61437908]
[1760248038954,0.1304,3825.1,3824.9,2.61444135]
[1760248039145,0.3916,3825.0,3824.9,2.61444135]
[1760248041167,0.1304,3825.1,3825.0,2.61437908]
[1760248041600,0.522,3825.1,3825.0,2.61437908]
[1760248044794,0.522,3825.1,3824.9,2.6164432]
[1760248045000,0.3916,3825.0,3824.9,2.6164432]
[1760248047613,0.1304,3825.1,3825.0,2.61437908]
[1760248048618,0.001,3825.7,3825.6,2.61396905]
[1760248048921,0.1304,3825.6,3825.5,2.61402749]
[1760248049292,0.522,3825.6,3825.5,2.61402749]
[1760248051503,0.1304,3825.6,3825.5,2.61402749]
[1760248051708,0.522,3825.6,3825.5,2.61402749]
[1760248052023,0.1304,3825.6,3825.5,2.61402749]
[1760248052519,0.001,3825.7,3825.6,2.61396905]
[1760248053876,0.001,3825.7,3825.6,3.70166905]
[1760248054092,0.001,3825.7,3825.6,3.83206905]
[1760248060030,0.001,3825.7,3825.6,3.37796905]
[1760248060331,0.001,3825.7,3825.6,3.83206905]
[1760248065753,0.001,3825.7,3825.6,5.75206905]
[1760248069971,0.001,3825.7,3825.6,3.82756905]
[1760248070174,0.001,3825.7,3825.6,2.74436905]
[1760248070741,0.001,3825.7,3825.6,2.61396905]
[1760248070742,0.4639,3825.7,3825.6,2.61396905]
[1760248070946,0.4639,3825.7,3825.5,2.61399735]
[1760248071158,0.5901,3825.6,3825.4,2.61410571]
[1760248071362,0.4597,3825.5,3825.4,2.61410571]
[1760248071689,0.1304,3825.6,3825.5,2.61403738]
[1760248072190,0.001,3825.7,3825.5,2.61403738]
[1760248072191,0.001,3825.7,3825.6,2.61396905]
[1760248072337,0.001,3825.7,3825.6,3.04666905]
[1760248072545,0.001,3825.7,3825.6,3.68026905]
[1760248072764,0.001,3825.7,3825.6,3.81066905]
[1760248072985,0.001,3825.7,3825.6,3.91553578]
[1760248073849,0.001,3825.7,3825.6,2.84923578]
[1760248074047,0.001,3825.7,3825.6,2.61396905]
[1760248078078,0.4416,3825.7,3825.6,2.61396905]
[1760248078278,0.001,3825.7,3825.6,2.61396905]
[1760248078783,0.0814,3825.9,3825.3,0.1304]
[1760248078984,0.1304,3825.3,3824.9,0.002]
[1760248079284,0.6061,3825.8,3825.0,2.61437908]
[1760248079586,1.92,3825.6,3824.9,0.002]
[1760248079794,1.92,3825.6,3824.9,2.6164291]
[1760248079996,0.3774,3825.5,3825.1,2.61428207]
[1760248080194,1.92,3825.3,3824.9,2.61639964]
[1760248080381,0.3774,3825.2,3824.9,0.002]
[1760248080784,0.3774,3825.1,3824.9,0.002]
[1760248081098,0.3774,3825.1,3825.0,2.6143743]
[1760248081263,0.3774,3825.1,3824.9,0.002]
[1760248081479,1.92,3825.0,3824.9,0.002]
[1760248081893,2.2974,3825.0,3824.9,0.002]
[1760248083880,4.91177908,3825.0,3824.9,0.002]
[1760248086102,2.2974,3825.0,3824.9,0.002]
[1760248086406,4.91177908,3825.0,3824.9,0.002]
[1760248088487,0.3774,3825.0,3824.9,0.002]
[1760248089221,7.70625935,3825.0,3824.9,0.002]
[1760248089802,6.90241551,3824.6,3824.5,0.002]
[1760248089994,4.53478924,3824.4,3824.3,0.002]
[1760248090520,4.91018924,3824.4,3824.3,0.002]
[1760248091038,2.2954,3824.4,3824.3,0.002]
[1760248091203,7.21141802,3824.4,3824.3,0.002]
[1760248092929,9.82620726,3824.4,3824.3,0.002]
[1760248093723,7.21141802,3824.4,3824.3,0.002]
[1760248093917,9.82620726,3824.4,3824.3,0.002]
[1760248095500,12.61868753,3824.4,3824.3,0.002]
[1760248097542,10.00389829,3824.4,3824.3,0.002]
[1760248098442,12.61868753,3824.4,3824.3,0.002]
[1760248098601,10.00389829,3824.4,3824.3,0.002]
[1760248099904,5.08788027,3824.4,3824.3,2.61685762]
[1760248100126,1.92,3824.4,3824.3,2.61685762]
[1760248100336,0.3754,3824.8,3824.7,2.61458415]
[1760248101850,2.2954,3825.2,3824.9,2.61444217]
[1760248102009,2.2954,3825.2,3824.6,2.61465251]
[1760248102010,0.1304,3824.7,3824.6,2.61465251]
[1760248103917,4.33260826,3824.7,3824.6,2.61465251]
[1760248104111,2.4258,3824.7,3824.6,2.61465251]
[1760248104637,2.0504,3824.7,3824.6,2.61465251]
[1760248107426,1.92,3824.7,3824.6,3.08435251]
[1760248109448,0.1304,3825.1,3825.0,2.61437908]
[1760248109608,1.92,3825.7,3824.7,0.4372]
[1760248109928,0.1304,3825.3,3825.2,2.61424239]
[1760248110648,0.001,3825.9,3825.8,2.6138324]
[1760248110867,0.001,3825.9,3825.8,3.6846324]
[1760248111010,0.001,3825.9,3825.8,3.8150324]
[1760248111367,0.001,3825.9,3825.8,3.6846324]
[1760248111951,0.001,3825.9,3825.8,3.2474324]
[1760248112443,0.001,3825.9,3825.8,3.6846324]
[1760248113753,0.001,3825.9,3825.8,3.2474324]
[1760248115560,0.001,3825.9,3825.8,2.6138324]
[1760248116855,0.001,3825.9,3825.8,3.0510324]
[1760248117031,0.001,3825.9,3825.8,2.6138324]
[1760248117632,0.001,3825.9,3825.8,3.0510324]
[1760248121263,0.001,3825.9,3825.8,3.8150324]
[1760248121770,0.001,3825.9,3825.8,3.3778324]
[1760248123982,0.3749,3825.9,3825.8,2.6138324]
[1760248124173,0.3749,3825.9,3824.8,3.05171579]
[1760248124174,0.3749,3825.9,3825.3,0.1304]
[1760248124341,6.72870826,3825.9,3825.8,2.6138324]
[1760248125286,1.92,3825.8,3825.3,0.1304]
[1760248125574,1.92,3825.8,3825.7,2.61390072]
[1760248126076,2.2925,3825.8,3825.7,2.61390072]
[1760248129994,2.2925,3825.8,3825.5,2.61400024]
[1760248130315,6.12220826,3825.6,3825.5,2.61400024]
[1760248130599,6.49470826,3825.6,3825.5,2.61400024]
[1760248131606,2.2925,3825.6,3825.5,2.61400024]
[1760248132103,1.92,3825.6,3825.5,2.61400024]
[1760248135104,0.001,3825.9,3825.8,2.6138324]
[1760248135699,0.001,3825.9,3825.8,3.0858324]
[1760248136514,0.001,3825.9,3825.8,2.6138324]
[1760248137315,0.001,3825.9,3825.8,3.0858324]
[1760248138797,0.001,3825.9,3825.8,2.6138324]
[1760248139325,2.2952,3825.9,3825.8,2.6138324]
[1760248139535,2.5251,3825.9,3825.8,2.6138324]
[1760248140388,2.2952,3825.9,3825.8,2.6138324]
[1760248140802,1.921,3825.9,3825.8,2.6138324]
[1760248140989,0.001,3825.9,3825.8,2.6138324]
[1760248145012,0.6073,3825.9,3825.8,2.6138324]
[1760248145649,0.4571,3825.9,3825.8,2.6138324]
[1760248145957,0.4541,3825.9,3825.8,2.6138324]
[1760248146156,0.6073,3825.9,3825.8,2.6138324]
[1760248146318,0.4541,3825.9,3825.8,2.6138324]
[1760248146826,0.001,3825.9,3825.8,2.6138324]
[1760248150337,0.4511,3825.9,3825.8,2.6138324]
[1760248150734,0.001,3825.9,3825.8,2.6138324]
[1760248156064,0.4511,3825.9,3825.8,2.6138324]
[1760248156446,0.001,3825.9,3825.8,2.6138324]
[1760248160045,0.4511,3825.9,3825.8,2.6138324]
[1760248161757,0.4511,3825.9,3825.0,0.472]
[1760248161758,1.92,3825.8,3824.7,0.6336]
[1760248161968,1.92,3825.8,3825.7,2.61390072]
[1760248162269,0.4481,3825.9,3825.8,2.6138324]
[1760248165783,0.001,3825.9,3825.8,2.6138324]
[1760248166346,0.4453,3825.9,3825.8,2.6138324]
[1760248166576,0.001,3825.9,3825.8,2.6138324]
[1760248168197,0.4453,3825.9,3825.8,2.6138324]
[1760248168974,0.001,3825.9,3825.8,2.6138324]
[1760248169862,0.001,3825.9,3825.8,3.0642324]
[1760248170461,0.001,3825.9,3825.8,2.6138324]
[1760248170663,0.001,3825.9,3825.8,3.0642324]
[1760248170860,0.001,3825.9,3825.8,3.6978324]
[1760248171060,0.001,3825.9,3825.8,3.8282324]
[1760248171296,1e-08,3826.5,3826.1,3.24722745]
[1760248171497,1e-08,3826.5,3826.4,3.50222253]
[1760248171870,1e-08,3826.5,3826.4,3.95262253]
[1760248172198,1e-08,3826.5,3826.4,4.08302253]
[1760248173164,1e-08,3826.5,3826.4,3.95262253]
[1760248176996,1e-08,3826.5,3826.4,2.74382253]
[1760248177405,1e-08,3826.5,3826.4,3.82782253]
[1760248178468,1e-08,3826.5,3826.4,3.37742253]
[1760248178985,1e-08,3826.5,3826.4,2.61342253]
[1760248182032,1e-08,3826.5,3826.4,3.04332253]
[1760248182828,1e-08,3826.5,3826.4,3.24702253]
[1760248183136,1e-08,3826.5,3826.4,3.67692253]
[1760248183416,1e-08,3826.5,3826.4,3.80732253]
[1760248183720,1e-08,3826.5,3826.4,3.9121604]
[1760248187726,1e-08,3826.5,3826.4,3.4822604]
[1760248189218,1e-08,3826.5,3826.4,3.9121604]
[1760248190497,1e-08,3826.5,3826.4,3.4822604]
[1760248191435,1e-08,3826.5,3826.4,3.9121604]
[1760248192314,1e-08,3826.5,3826.4,3.9287604]
[1760248194900,1e-08,3826.5,3826.4,3.9307604]
[1760248198119,1e-08,3826.5,3826.4,3.4842604]
[1760248199152,1e-08,3826.5,3826.4,0.002]
[1760248199445,0.44470001,3826.5,3826.4,0.002]
[1760248200314,0.13040001,3826.5,3826.4,2.61542253]
[1760248201405,0.13040001,3826.5,3826.4,0.002]
[1760248201605,0.57510001,3826.5,3826.4,0.002]
[1760248205060,2.49510001,3826.5,3826.4,0.002]
[1760248205214,7.40845984,3826.5,3826.4,0.002]
[1760248205634,0.57510001,3826.5,3826.4,0.002]
[1760248205948,2.49510001,3826.5,3826.4,0.002]
[1760248206458,0.57510001,3826.5,3826.4,0.002]
[1760248206840,0.57510001,3826.5,3826.4,2.61542253]
[1760248207263,0.57510001,3826.5,3826.4,0.002]
[1760248208247,2.49510001,3826.5,3826.4,0.002]
[1760248208970,0.57510001,3826.5,3826.4,0.002]
[1760248209858,0.13040001,3826.5,3826.4,2.61542253]
[1760248210058,0.57510001,3826.5,3826.4,0.002]
[1760248210437,0.57510001,3826.5,3826.4,2.61542253]
[1760248211850,0.13040001,3826.5,3826.4,0.002]
[1760248212056,0.57510001,3826.5,3826.4,0.002]
[1760248215179,0.57510001,3826.5,3826.4,2.61542253]
[1760248215379,0.57510001,3826.5,3826.4,0.002]
[1760248217384,7.40845984,3826.5,3826.4,0.002]
[1760248221390,2.05040001,3826.5,3826.4,2.61542253]
[1760248221691,1.92000001,3826.5,3826.4,2.61542253]
[1760248222892,2.36470001,3826.5,3826.4,0.002]
[1760248225595,6.56345579,3826.5,3826.4,0.002]
[1760248230284,9.17681003,3826.5,3826.4,0.002]
[1760248230493,15.48433381,3826.5,3826.4,0.002]
[1760248230808,15.8942865,3826.5,3826.4,0.002]
[1760248231303,24.3553015,3826.5,3826.4,0.002]
[1760248231468,9.58676272,3826.5,3826.4,0.002]
[1760248232069,11.75760872,3826.5,3826.4,0.002]
[1760248232271,2.36470001,3826.5,3826.4,0.002]
[1760248232512,6.56345579,3826.5,3826.4,0.002]
[1760248232692,1e-08,3826.5,3826.4,2.61542253]
[1760248232901,0.44470001,3826.5,3826.4,0.002]
[1760248233076,2.36470001,3826.5,3826.4,0.002]
[1760248233604,0.44470001,3826.5,3826.4,2.61542253]
[1760248233807,0.44470001,3826.5,3826.4,0.002]
[1760248234114,2.36470001,3826.5,3826.4,0.002]
[1760248236831,1e-08,3826.5,3826.4,0.002]
[1760248237030,0.44470001,3826.5,3826.4,0.002]
[1760248239795,3.05805425,3826.5,3826.4,0.002]
[1760248240100,4.97805425,3826.5,3826.4,0.002]
[1760248240720,9.17681003,3826.5,3826.4,0.002]
[1760248241220,2.61362745,3826.1,3826.0,0.002]
[1760248241519,12.93113901,3826.1,3826.0,0.002]
[1760248241719,13.37583901,3826.1,3826.0,0.002]
[1760248244337,18.79903601,3826.1,3826.0,0.002]
[1760248244518,15.49394301,3826.1,3826.0,0.002]
[1760248244834,16.35584301,3826.1,3826.0,0.002]
[1760248245009,13.37583901,3826.1,3826.0,0.002]
[1760248246939,22.15015501,3826.1,3826.0,0.002]
[1760248247137,13.37583901,3826.1,3826.0,0.002]
[1760248247529,15.75635701,3826.1,3826.0,0.002]
[1760248247945,13.37583901,3826.1,3826.0,0.002]
[1760248248236,6.56345578,3826.1,3826.0,0.002]
[1760248248404,13.37583901,3826.1,3826.0,0.002]
[1760248250828,2.3647,3826.1,3826.0,0.002]
[1760248251021,6.56345578,3826.1,3826.0,0.002]
[1760248251351,10.76221156,3826.1,3826.0,0.002]
[1760248256354,13.37583901,3826.1,3826.0,0.002]
[1760248256571,10.76221156,3826.1,3826.0,0.002]
[1760248259132,13.37583901,3826.1,3826.0,0.002]
[1760248259837,13.37583901,3826.1,3825.2,0.002]
[1760248259838,2.61390072,3825.7,3825.2,0.002]
[1760248260162,13.09368561,3825.3,3825.2,0.002]
[1760248260358,10.47951156,3825.3,3825.2,0.002]
[1760248260564,13.52398561,3825.3,3825.2,0.002]
[1760248261162,10.90981156,3825.3,3825.2,0.002]
[1760248261567,13.52398561,3825.3,3825.2,0.002]
[1760248262269,20.59281661,3825.3,3825.2,0.002]
[1760248262442,18.03650861,3825.3,3825.2,0.002]
[1760248262969,13.52398561,3825.3,3825.2,0.002]
[1760248263268,15.92252061,3825.3,3825.2,0.002]
[1760248263444,15.92252061,3825.3,3824.5,0.002]
[1760248263445,2.61441026,3825.0,3824.5,0.002]
[1760248263630,6.11875578,3824.6,3824.5,0.002]
[1760248264062,6.54905578,3824.6,3824.5,0.002]
[1760248265341,9.16370829,3824.6,3824.5,0.002]
[1760248265572,13.36246407,3824.6,3824.5,0.002]
[1760248265889,13.36246407,3824.6,3824.3,0.002]
[1760248265890,4.53478924,3824.4,3824.3,0.002]
[1760248266256,4.53478924,3824.4,3824.1,0.002]
[1760248266257,2.61492599,3824.2,3824.1,0.002]
[1760248266475,12.93243755,3824.2,3824.1,0.002]
[1760248266675,13.36273755,3824.2,3824.1,0.002]
[1760248267973,28.14652255,3824.2,3824.1,0.002]
[1760248268283,13.36273755,3824.2,3824.1,0.002]
[1760248268489,15.62072655,3824.2,3824.1,0.002]
[1760248269312,13.36273755,3824.2,3824.1,0.002]
[1760248270865,10.74781156,3824.2,3824.1,0.002]
[1760248271187,6.54905578,3824.2,3824.1,0.002]
[1760248271778,10.74781156,3824.2,3824.1,0.002]
[1760248271963,16.15521782,3824.2,3824.1,0.002]
[1760248272982,4.53506276,3824.0,3823.9,0.002]
[1760248273374,4.96536276,3824.0,3823.9,0.002]
[1760248274163,7.75584303,3824.0,3823.9,0.002]
[1760248278875,5.14078027,3824.0,3823.9,0.002]
[1760248279071,7.75584303,3824.0,3823.9,0.002]
[1760248280784,5.14078027,3824.0,3823.9,0.002]
[1760248281526,4.71048027,3824.0,3823.9,2.61713114]
[1760248281693,9.33953605,3824.0,3823.9,2.61713114]
[1760248281895,8.90923605,3824.0,3823.9,2.61713114]
[1760248282086,2.47726494,3824.0,3823.9,2.61713114]
[1760248282304,2.25929955,3824.0,3823.9,2.61713114]
[1760248282498,2.12889955,3824.0,3823.9,2.61713114]
[1760248286091,4.04889955,3824.0,3823.9,2.61713114]
[1760248286819,8.68945533,3824.0,3823.9,0.002]
[1760248287502,9.41067993,3824.0,3823.9,0.002]
[1760248290503,12.02574269,3824.0,3823.9,0.002]
[1760248292924,9.41067993,3824.0,3823.9,0.002]
[1760248293221,4.49069955,3824.0,3823.9,0.002]
[1760248293420,2.12889955,3824.0,3823.9,2.61713114]
[1760248293790,4.04889955,3824.0,3823.9,2.61713114]
[1760248294113,2.12889955,3824.0,3823.9,2.61713114]
[1760248294620,4.04889955,3824.0,3823.9,2.61713114]
[1760248295502,4.04989955,3824.0,3823.9,2.61713114]
[1760248297636,0.001,3824.0,3823.9,2.61713114]
[1760248299443,0.001,3824.0,3823.9,3.04513114]
[1760248300637,4.92098038,3824.0,3823.9,2.61713114]
[1760248301544,0.001,3824.0,3823.9,2.61713114]
[1760248303006,0.431,3824.0,3823.9,2.61713114]
[1760248303209,0.001,3824.0,3823.9,2.61713114]
[1760248304144,0.431,3824.0,3823.9,2.61713114]
[1760248306140,6.84098038,3824.0,3823.9,0.002]
[1760248306336,9.88604314,3824.0,3823.9,0.002]
[1760248307246,7.27098038,3824.0,3823.9,0.002]
[1760248307449,9.88604314,3824.0,3823.9,0.002]
[1760248311050,2.351,3824.0,3823.9,0.002]
[1760248311219,7.27098038,3824.0,3823.9,0.002]
[1760248312333,2.3628,3824.0,3823.9,2.61713114]
[1760248312824,1.921,3824.0,3823.9,2.61713114]
[1760248315862,7.28278038,3824.0,3823.9,0.002]
[1760248317818,9.41167993,3824.0,3823.9,0.002]
[1760248320336,4.04989955,3824.0,3823.9,2.61713114]
[1760248320850,4.04989955,3824.0,3823.9,0.002]
[1760248321030,4.04989955,3824.0,3823.9,2.61713114]
[1760248321465,2.26029955,3824.0,3823.9,2.61713114]
[1760248323141,14.56758669,3824.0,3823.9,0.002]
[1760248323465,14.56758669,3824.0,3823.5,0.002]
[1760248323466,4.53533633,3823.6,3823.5,0.002]
[1760248323628,9.45531671,3823.6,3823.5,0.002]
[1760248323829,9.90271671,3823.6,3823.5,0.002]
[1760248324030,12.03161626,3823.6,3823.5,0.002]
[1760248325438,20.21518926,3823.6,3823.5,0.002]
[1760248325634,25.13579926,3823.6,3823.5,0.002]
[1760248326573,23.80987426,3823.6,3823.5,0.002]
[1760248326876,26.09502126,3823.6,3823.5,0.002]
[1760248327768,27.90527226,3823.6,3823.5,0.002]
[1760248328273,28.53887226,3823.6,3823.5,0.002]
[1760248328653,20.84878926,3823.6,3823.5,0.002]
[1760248328851,26.60356426,3823.6,3823.5,0.002]
[1760248329171,2.61574679,3823.0,3822.0,2.61841495]
[1760248329466,4.49229955,3822.9,3822.7,0.002]
[1760248329872,4.53589744,3822.8,3822.7,0.002]
[1760248330348,7.10819699,3822.8,3822.7,0.002]
[1760248331754,4.49229955,3822.8,3822.7,0.002]
[1760248332150,4.04489955,3822.8,3822.7,0.002]
[1760248332345,4.04489955,3822.8,3822.7,2.61795207]
[1760248332552,0.2292,3823.7,3822.7,0.002]
[1760248332748,2.12489955,3823.7,3823.6,2.61533633]
[1760248332954,2.12489955,3823.7,3822.7,0.456]
[1760248332955,0.001,3824.0,3823.2,0.454]
[1760248333256,0.001,3824.0,3823.9,2.61513114]
[1760248337053,0.001,3824.0,3823.9,3.06913114]
[1760248337255,0.001,3824.0,3823.9,3.70273114]
[1760248340173,0.001,3824.0,3823.9,3.24873114]
[1760248340707,0.4484,3824.0,3822.7,0.456]
[1760248341001,0.4484,3824.0,3823.4,2.61541072]
[1760248341824,0.4484,3824.0,3823.5,2.61539659]
[1760248342116,0.001,3824.0,3823.6,0.4299]
[1760248342266,0.001,3824.0,3822.7,0.002]
[1760248342590,0.6776,3823.9,3823.1,2.61562284]
[1760248342905,1.92,3823.6,3823.0,2.61574103]
[1760248343110,0.4464,3823.5,3822.7,0.002]
[1760248343277,3.06181699,3823.5,3822.7,0.002]
[1760248343607,2.61561148,3823.2,3822.7,0.002]
[1760248343916,2.3664,3823.5,3822.7,0.002]
[1760248344093,2.61588364,3822.8,3822.7,0.002]
[1760248344286,4.53588364,3822.8,3822.7,0.002]
[1760248344482,4.98228364,3822.8,3822.7,0.002]
[1760248345219,1.92,3822.8,3822.7,0.002]
[1760248345503,2.3664,3822.8,3822.7,0.002]
[1760248346478,1.92,3822.8,3822.7,0.002]
[1760248346712,2.3664,3822.8,3822.7,0.002]
[1760248347318,4.98228364,3822.8,3822.7,0.002]
[1760248355338,10.15589764,3822.8,3822.7,0.002]
[1760248355516,7.52546264,3822.8,3822.7,0.002]
[1760248356127,4.98228364,3822.8,3822.7,0.002]
[1760248357860,14.80462364,3822.8,3822.7,0.002]
[1760248358076,4.98228364,3822.8,3822.7,0.002]
[1760248358545,11.71206664,3822.8,3822.7,0.002]
[1760248358875,10.66997964,3822.8,3822.7,0.002]
[1760248360010,10.73547764,3822.8,3822.7,0.002]
[1760248360663,2.61607155,3822.6,3822.3,0.002]
[1760248360870,37.83587898,3822.4,3822.3,0.002]
[1760248361372,38.6927178,3822.4,3822.3,0.002]
[1760248361980,36.4623808,3822.4,3822.3,0.002]
[1760248362176,11.3094882,3822.4,3822.3,0.002]
[1760248362379,10.7182502,3822.4,3822.3,0.002]